[Event "Titled Tuesday Blitz May 16 Early 2023"]
[White "Harsh Suresh"]
[Black "egorchess95"]
[WhiteFideId "45018464"]
[WhiteElo "2209"]
[BlackElo "2571"]
[Result "1-0"]
[Round "11"]
[TimeControl "180+2"]
[Date "2023.05.16"]
[WhiteClock "0:01:35"]
[BlackClock "0:00:25"]

1. e4 {[%clk 0:03:00]}  c5 {[%clk 0:02:59]} 2. Nc3 {[%clk 0:03:00]}  Nc6 {[%clk 0:02:58]} 3. Bb5 {[%clk 0:03:00]}  Nd4 {[%clk 0:02:58]} 4. Bc4 {[%clk 0:03:01]}  e6 {[%clk 0:02:57]} 5. Nf3 {[%clk 0:03:01]}  a6 {[%clk 0:02:49]} 6. Nxd4 {[%clk 0:03:01]}  cxd4 {[%clk 0:02:49]} 7. Ne2 {[%clk 0:03:01]}  Bc5 {[%clk 0:02:34]} 8. d3 {[%clk 0:03:01]}  d6 {[%clk 0:02:27]} 9. Bb3 {[%clk 0:03:01]}  Nf6 {[%clk 0:02:27]} 10. O-O {[%clk 0:03:01]}  O-O {[%clk 0:02:24]} 11. a4 {[%clk 0:02:51]}  Ne8 {[%clk 0:02:12]} 12. f4 {[%clk 0:02:47]}  e5 {[%clk 0:01:48]} 13. f5 {[%clk 0:02:42]}  Kh8 {[%clk 0:01:44]} 14. Ng3 {[%clk 0:02:25]}  f6 {[%clk 0:01:36]} 15. Qh5 {[%clk 0:02:24]}  Nc7 {[%clk 0:01:35]} 16. Bd2 {[%clk 0:02:16]}  Qe8 {[%clk 0:01:34]} 17. Qh4 {[%clk 0:02:15]}  Bd7 {[%clk 0:01:19]} 18. Rf3 {[%clk 0:02:12]}  g5 {[%clk 0:00:50]} 19. fxg6 {[%clk 0:01:48]}  Qxg6 {[%clk 0:00:51]} 20. Raf1 {[%clk 0:01:48]}  Ne8 {[%clk 0:00:42]} 21. Bh6 {[%clk 0:01:41]}  Bg4 {[%clk 0:00:29]} 22. Bxf8 {[%clk 0:01:37]}  Bxf3 {[%clk 0:00:29]} 23. Rxf3 {[%clk 0:01:38]}  d5 {[%clk 0:00:25]} 24. Bxc5 {[%clk 0:01:35]} 1-0


[Site "https://www.chess.com"]

[Event "Titled Tuesday Blitz May 16 Early 2023"]
[White "Rozman, Levy"]
[Black "Thecourseoisildur"]
[WhiteFideId "2039877"]
[WhiteElo "2376"]
[BlackElo "2568"]
[Result "1-0"]
[Round "11"]
[TimeControl "180+2"]
[Date "2023.05.16"]
[WhiteClock "0:00:16"]
[BlackClock "0:00:00"]

1. e4 {[%clk 0:03:00]}  c5 {[%clk 0:02:58]} 2. Nc3 {[%clk 0:03:01]}  Nc6 {[%clk 0:02:58]} 3. Bb5 {[%clk 0:03:01]}  Nd4 {[%clk 0:02:58]} 4. Nf3 {[%clk 0:03:02]}  Nxb5 {[%clk 0:02:58]} 5. Nxb5 {[%clk 0:03:03]}  d5 {[%clk 0:02:58]} 6. exd5 {[%clk 0:03:02]}  a6 {[%clk 0:02:58]} 7. Nc3 {[%clk 0:03:02]}  Nf6 {[%clk 0:02:59]} 8. O-O {[%clk 0:03:02]}  Nxd5 {[%clk 0:02:58]} 9. d4 {[%clk 0:03:01]}  Nxc3 {[%clk 0:02:57]} 10. bxc3 {[%clk 0:03:02]}  e6 {[%clk 0:02:58]} 11. Re1 {[%clk 0:02:57]}  Be7 {[%clk 0:02:54]} 12. Ne5 {[%clk 0:02:50]}  O-O {[%clk 0:02:47]} 13. Be3 {[%clk 0:02:39]}  Qd5 {[%clk 0:02:37]} 14. c4 {[%clk 0:02:38]}  Qd6 {[%clk 0:02:32]} 15. Bf4 {[%clk 0:02:36]}  Qxd4 {[%clk 0:02:30]} 16. Qf3 {[%clk 0:02:31]}  Qb2 {[%clk 0:01:59]} 17. Qg3 {[%clk 0:02:22]}  Qxc2 {[%clk 0:01:56]} 18. Rad1 {[%clk 0:02:17]}  b5 {[%clk 0:01:37]} 19. Nc6 {[%clk 0:01:42]}  Bf6 {[%clk 0:01:29]} 20. Bd6 {[%clk 0:01:30]}  Bb7 {[%clk 0:01:18]} 21. Ne7+ {[%clk 0:01:22]}  Kh8 {[%clk 0:01:14]} 22. Rc1 {[%clk 0:01:12]}  Qxa2 {[%clk 0:01:09]} 23. cxb5 {[%clk 0:01:08]}  axb5 {[%clk 0:01:03]} 24. Bxc5 {[%clk 0:01:06]}  Rfe8 {[%clk 0:00:32]} 25. Qc7 {[%clk 0:00:57]}  Qa6 {[%clk 0:00:27]} 26. h4 {[%clk 0:00:53]}  Bxh4 {[%clk 0:00:23]} 27. Ra1 {[%clk 0:00:51]}  Qxa1 {[%clk 0:00:21]} 28. Rxa1 {[%clk 0:00:51]}  Rxa1+ {[%clk 0:00:21]} 29. Kh2 {[%clk 0:00:52]}  Bxe7 {[%clk 0:00:16]} 30. Bxe7 {[%clk 0:00:53]}  Bd5 {[%clk 0:00:16]} 31. Bd6 {[%clk 0:00:50]}  Kg8 {[%clk 0:00:13]} 32. f3 {[%clk 0:00:49]}  Raa8 {[%clk 0:00:12]} 33. Be5 {[%clk 0:00:49]}  b4 {[%clk 0:00:11]} 34. Qb6 {[%clk 0:00:49]}  b3 {[%clk 0:00:11]} 35. Qe3 {[%clk 0:00:49]}  f6 {[%clk 0:00:11]} 36. Bb2 {[%clk 0:00:49]}  Ra2 {[%clk 0:00:11]} 37. Qc3 {[%clk 0:00:49]}  Rxb2 {[%clk 0:00:10]} 38. Qxb2 {[%clk 0:00:49]}  Rc8 {[%clk 0:00:10]} 39. Qa3 {[%clk 0:00:41]}  h5 {[%clk 0:00:10]} 40. Kg3 {[%clk 0:00:38]}  Kh7 {[%clk 0:00:11]} 41. Qb4 {[%clk 0:00:37]}  Rc2 {[%clk 0:00:09]} 42. Qb5 {[%clk 0:00:35]}  Kh6 {[%clk 0:00:06]} 43. Qb8 {[%clk 0:00:33]}  Kh7 {[%clk 0:00:04]} 44. Qb5 {[%clk 0:00:33]}  h4+ {[%clk 0:00:03]} 45. Kh3 {[%clk 0:00:30]}  Rd2 {[%clk 0:00:03]} 46. Qb4 {[%clk 0:00:30]}  Rc2 {[%clk 0:00:03]} 47. Qxh4+ {[%clk 0:00:31]}  Kg8 {[%clk 0:00:02]} 48. Qh5 {[%clk 0:00:28]}  b2 {[%clk 0:00:02]} 49. Qe8+ {[%clk 0:00:28]}  Kh7 {[%clk 0:00:02]} 50. Qh5+ {[%clk 0:00:27]}  Kg8 {[%clk 0:00:03]} 51. Qe8+ {[%clk 0:00:24]}  Kh7 {[%clk 0:00:03]} 52. Qb5 {[%clk 0:00:18]}  g5 {[%clk 0:00:02]} 53. Qd3+ {[%clk 0:00:16]}  Be4 {[%clk 0:00:00]} 54. Qxe4+ {[%clk 0:00:16]} 1-0


[Site "https://www.chess.com"]

[Event "Titled Tuesday Blitz May 16 Early 2023"]
[White "iHateNAJDORF"]
[Black "Mendez Fortes, Eduardo Jesus"]
[BlackFideId "3502376"]
[WhiteElo "2559"]
[BlackElo "2307"]
[Result "1-0"]
[Round "11"]
[TimeControl "180+2"]
[Date "2023.05.16"]
[WhiteClock "0:01:38"]
[BlackClock "0:01:15"]

1. e4 {[%clk 0:02:59]}  c5 {[%clk 0:03:00]} 2. Nf3 {[%clk 0:02:53]}  d6 {[%clk 0:03:00]} 3. d4 {[%clk 0:02:53]}  cxd4 {[%clk 0:03:01]} 4. Nxd4 {[%clk 0:02:54]}  Nf6 {[%clk 0:03:02]} 5. Nc3 {[%clk 0:02:54]}  a6 {[%clk 0:03:03]} 6. a3 {[%clk 0:02:55]}  e5 {[%clk 0:02:54]} 7. Nf5 {[%clk 0:02:54]}  d5 {[%clk 0:02:55]} 8. Bg5 {[%clk 0:02:52]}  d4 {[%clk 0:02:55]} 9. Bxf6 {[%clk 0:02:51]}  gxf6 {[%clk 0:02:54]} 10. Nb1 {[%clk 0:02:52]}  Nc6 {[%clk 0:02:47]} 11. Bd3 {[%clk 0:02:50]}  Be6 {[%clk 0:02:42]} 12. O-O {[%clk 0:02:47]}  Qb6 {[%clk 0:02:42]} 13. b4 {[%clk 0:02:41]}  O-O-O {[%clk 0:02:38]} 14. Nd2 {[%clk 0:02:39]}  Kb8 {[%clk 0:02:36]} 15. Qf3 {[%clk 0:02:39]}  Na7 {[%clk 0:02:35]} 16. h4 {[%clk 0:02:03]}  h5 {[%clk 0:02:34]} 17. Rfc1 {[%clk 0:01:59]}  Rc8 {[%clk 0:02:28]} 18. Nb1 {[%clk 0:01:57]}  Nb5 {[%clk 0:02:24]} 19. c4 {[%clk 0:01:54]}  dxc3 {[%clk 0:02:20]} 20. Bxb5 {[%clk 0:01:54]}  Qxb5 {[%clk 0:02:16]} 21. Nxc3 {[%clk 0:01:53]}  Qb6 {[%clk 0:02:10]} 22. Nd5 {[%clk 0:01:51]}  Rxc1+ {[%clk 0:01:59]} 23. Rxc1 {[%clk 0:01:51]}  Qb5 {[%clk 0:01:59]} 24. Nxf6 {[%clk 0:01:43]}  a5 {[%clk 0:01:53]} 25. Qc3 {[%clk 0:01:39]}  Bxf5 {[%clk 0:01:32]} 26. Qc7+ {[%clk 0:01:39]}  Ka7 {[%clk 0:01:29]} 27. exf5 {[%clk 0:01:40]}  Bh6 {[%clk 0:01:15]} 28. Rc5 {[%clk 0:01:38]} 1-0


[Site "https://www.chess.com"]

[Event "Titled Tuesday Blitz May 16 Early 2023"]
[White "Itgelt, Khuyagtsogt"]
[Black "Demin, Vladimir"]
[WhiteFideId "4902912"]
[BlackFideId "4167457"]
[WhiteElo "2227"]
[BlackElo "2556"]
[Result "0-1"]
[Round "11"]
[TimeControl "180+2"]
[Date "2023.05.16"]
[WhiteClock "0:00:00"]
[BlackClock "0:00:07"]

1. b3 {[%clk 0:02:58]}  d5 {[%clk 0:02:58]} 2. Bb2 {[%clk 0:02:57]}  Nf6 {[%clk 0:02:56]} 3. e3 {[%clk 0:02:57]}  c5 {[%clk 0:02:52]} 4. Nf3 {[%clk 0:02:56]}  Nc6 {[%clk 0:02:52]} 5. d4 {[%clk 0:02:49]}  Bg4 {[%clk 0:02:50]} 6. dxc5 {[%clk 0:02:40]}  e6 {[%clk 0:02:50]} 7. h3 {[%clk 0:02:36]}  Bh5 {[%clk 0:02:41]} 8. Be2 {[%clk 0:02:32]}  Bxc5 {[%clk 0:02:40]} 9. O-O {[%clk 0:02:31]}  O-O {[%clk 0:02:40]} 10. Nc3 {[%clk 0:02:23]}  Qe7 {[%clk 0:02:31]} 11. a3 {[%clk 0:02:22]}  Rfd8 {[%clk 0:02:29]} 12. b4 {[%clk 0:02:12]}  Bd6 {[%clk 0:02:28]} 13. Nb5 {[%clk 0:02:12]}  Bb8 {[%clk 0:02:27]} 14. Nfd4 {[%clk 0:02:11]}  Bxe2 {[%clk 0:02:26]} 15. Qxe2 {[%clk 0:02:12]}  e5 {[%clk 0:02:18]} 16. Nxc6 {[%clk 0:01:57]}  bxc6 {[%clk 0:02:19]} 17. Nc3 {[%clk 0:01:58]}  e4 {[%clk 0:02:17]} 18. f4 {[%clk 0:01:48]}  exf3 {[%clk 0:02:15]} 19. Rxf3 {[%clk 0:01:47]}  Be5 {[%clk 0:02:11]} 20. Raf1 {[%clk 0:01:42]}  a5 {[%clk 0:02:11]} 21. Rf5 {[%clk 0:01:19]}  axb4 {[%clk 0:02:09]} 22. axb4 {[%clk 0:01:07]}  Qxb4 {[%clk 0:01:54]} 23. Rxe5 {[%clk 0:01:02]}  Qxb2 {[%clk 0:01:54]} 24. Qd3 {[%clk 0:01:01]}  Ra3 {[%clk 0:01:47]} 25. Nd1 {[%clk 0:00:52]}  Rxd3 {[%clk 0:01:08]} 26. Nxb2 {[%clk 0:00:52]}  Rc3 {[%clk 0:01:06]} 27. Rc1 {[%clk 0:00:40]}  Ne4 {[%clk 0:00:55]} 28. Nd1 {[%clk 0:00:37]}  Rc4 {[%clk 0:00:52]} 29. Re7 {[%clk 0:00:23]}  Kf8 {[%clk 0:00:52]} 30. Rc7 {[%clk 0:00:20]}  Rb8 {[%clk 0:00:51]} 31. Kh2 {[%clk 0:00:14]}  h5 {[%clk 0:00:49]} 32. h4 {[%clk 0:00:07]}  g6 {[%clk 0:00:30]} 33. c3 {[%clk 0:00:06]}  Rb3 {[%clk 0:00:25]} 34. Ra1 {[%clk 0:00:05]}  Nd6 {[%clk 0:00:20]} 35. Rd7 {[%clk 0:00:05]}  Rxh4+ {[%clk 0:00:19]} 36. Kg1 {[%clk 0:00:04]}  Nf5 {[%clk 0:00:19]} 37. Ra8+ {[%clk 0:00:03]}  Kg7 {[%clk 0:00:18]} 38. Raa7 {[%clk 0:00:04]}  Nh6 {[%clk 0:00:19]} 39. Kf2 {[%clk 0:00:02]}  Rc4 {[%clk 0:00:19]} 40. Ke2 {[%clk 0:00:03]}  Rb8 {[%clk 0:00:18]} 41. Kd3 {[%clk 0:00:03]}  Rf8 {[%clk 0:00:17]} 42. Nf2 {[%clk 0:00:03]}  Nf5 {[%clk 0:00:16]} 43. Nh3 {[%clk 0:00:04]}  Rg4 {[%clk 0:00:15]} 44. Nf4 {[%clk 0:00:03]}  Kg8 {[%clk 0:00:13]} 45. Kd2 {[%clk 0:00:02]}  h4 {[%clk 0:00:13]} 46. Rac7 {[%clk 0:00:02]}  g5 {[%clk 0:00:07]} 47. Nh5 {[%clk 0:00:03]}  Rxg2+ {[%clk 0:00:08]} 48. Kc1 {[%clk 0:00:02]}  h3 {[%clk 0:00:08]} 49. Nf6+ {[%clk 0:00:00]}  Kg7 {[%clk 0:00:07]} 0-1


[Site "https://www.chess.com"]

[Event "Titled Tuesday Blitz May 16 Early 2023"]
[White "Borgaonkar Akshay"]
[Black "Kubicka, Anna"]
[WhiteFideId "25639110"]
[BlackFideId "1152254"]
[WhiteElo "2063"]
[BlackElo "2144"]
[Result "1-0"]
[Round "11"]
[TimeControl "180+2"]
[Date "2023.05.16"]
[WhiteClock "0:01:46"]
[BlackClock "0:00:07"]

1. d4 {[%clk 0:03:00]}  Nf6 {[%clk 0:02:59]} 2. Nc3 {[%clk 0:03:00]}  d5 {[%clk 0:02:59]} 3. Bf4 {[%clk 0:03:01]}  c6 {[%clk 0:02:59]} 4. e3 {[%clk 0:03:00]}  Bf5 {[%clk 0:02:57]} 5. Nf3 {[%clk 0:03:00]}  h6 {[%clk 0:02:53]} 6. Ne5 {[%clk 0:03:00]}  e6 {[%clk 0:02:51]} 7. g4 {[%clk 0:02:59]}  Bh7 {[%clk 0:02:48]} 8. h4 {[%clk 0:02:59]}  Nbd7 {[%clk 0:02:45]} 9. g5 {[%clk 0:02:49]}  Ne4 {[%clk 0:02:39]} 10. Nxe4 {[%clk 0:02:33]}  Bxe4 {[%clk 0:02:38]} 11. f3 {[%clk 0:02:33]}  Bf5 {[%clk 0:02:27]} 12. gxh6 {[%clk 0:02:28]}  Nxe5 {[%clk 0:02:16]} 13. dxe5 {[%clk 0:02:26]}  gxh6 {[%clk 0:01:59]} 14. Bd3 {[%clk 0:02:26]}  Qa5+ {[%clk 0:01:49]} 15. c3 {[%clk 0:02:25]}  Bxd3 {[%clk 0:01:46]} 16. Qxd3 {[%clk 0:02:26]}  Rg8 {[%clk 0:01:29]} 17. a4 {[%clk 0:02:23]}  Rg2 {[%clk 0:01:20]} 18. Rh2 {[%clk 0:01:53]}  Rg1+ {[%clk 0:01:16]} 19. Qf1 {[%clk 0:01:53]}  Rxf1+ {[%clk 0:01:14]} 20. Kxf1 {[%clk 0:01:54]}  Qa6+ {[%clk 0:01:11]} 21. Ke1 {[%clk 0:01:54]}  Qd3 {[%clk 0:01:04]} 22. Rd2 {[%clk 0:01:54]}  Qf5 {[%clk 0:01:01]} 23. Kf2 {[%clk 0:01:54]}  Qh3 {[%clk 0:00:55]} 24. Rg1 {[%clk 0:01:48]}  Qxh4+ {[%clk 0:00:52]} 25. Ke2 {[%clk 0:01:48]}  O-O-O {[%clk 0:00:49]} 26. Kd3 {[%clk 0:01:43]}  Be7 {[%clk 0:00:43]} 27. Rh2 {[%clk 0:01:43]}  f6 {[%clk 0:00:43]} 28. Rxh4 {[%clk 0:01:43]}  fxe5 {[%clk 0:00:42]} 29. Rxh6 {[%clk 0:01:43]}  exf4 {[%clk 0:00:42]} 30. exf4 {[%clk 0:01:43]}  Bd6 {[%clk 0:00:38]} 31. Rxe6 {[%clk 0:01:43]}  Bxf4 {[%clk 0:00:39]} 32. Rg7 {[%clk 0:01:43]}  Rd7 {[%clk 0:00:30]} 33. Rxd7 {[%clk 0:01:40]}  Kxd7 {[%clk 0:00:31]} 34. Rf6 {[%clk 0:01:41]}  Bc1 {[%clk 0:00:26]} 35. Rf7+ {[%clk 0:01:39]}  Kc8 {[%clk 0:00:25]} 36. b4 {[%clk 0:01:40]}  Bg5 {[%clk 0:00:13]} 37. c4 {[%clk 0:01:40]}  dxc4+ {[%clk 0:00:12]} 38. Kxc4 {[%clk 0:01:41]}  Bd8 {[%clk 0:00:13]} 39. b5 {[%clk 0:01:42]}  cxb5+ {[%clk 0:00:12]} 40. axb5 {[%clk 0:01:42]}  a6 {[%clk 0:00:12]} 41. f4 {[%clk 0:01:43]}  axb5+ {[%clk 0:00:11]} 42. Kxb5 {[%clk 0:01:44]}  Bc7 {[%clk 0:00:12]} 43. f5 {[%clk 0:01:45]}  Kd8 {[%clk 0:00:10]} 44. f6 {[%clk 0:01:45]}  b6 {[%clk 0:00:09]} 45. Rxc7 {[%clk 0:01:45]}  Kxc7 {[%clk 0:00:07]} 46. f7 {[%clk 0:01:46]} 1-0


[Site "https://www.chess.com"]

[Event "Titled Tuesday Blitz May 16 Early 2023"]
[White "Degenbaev, Aziz"]
[Black "Souleidis, Georgios"]
[WhiteFideId "13802640"]
[BlackFideId "4206827"]
[WhiteElo "2152"]
[BlackElo "2401"]
[Result "0-1"]
[Round "11"]
[TimeControl "180+2"]
[Date "2023.05.16"]
[WhiteClock "0:00:00"]
[BlackClock "0:00:04"]

1. e4 {[%clk 0:03:00]}  c5 {[%clk 0:02:59]} 2. Nf3 {[%clk 0:03:00]}  e6 {[%clk 0:03:00]} 3. d4 {[%clk 0:03:00]}  cxd4 {[%clk 0:03:00]} 4. Nxd4 {[%clk 0:03:01]}  Nf6 {[%clk 0:03:01]} 5. Nc3 {[%clk 0:03:00]}  Nc6 {[%clk 0:03:01]} 6. a3 {[%clk 0:02:58]}  Be7 {[%clk 0:02:58]} 7. f4 {[%clk 0:02:55]}  d6 {[%clk 0:02:40]} 8. Be3 {[%clk 0:02:53]}  O-O {[%clk 0:02:39]} 9. Qf3 {[%clk 0:02:52]}  a6 {[%clk 0:02:39]} 10. O-O-O {[%clk 0:02:50]}  Qc7 {[%clk 0:02:40]} 11. Nxc6 {[%clk 0:02:44]}  Qxc6 {[%clk 0:02:37]} 12. g4 {[%clk 0:02:45]}  b5 {[%clk 0:02:36]} 13. g5 {[%clk 0:02:44]}  Nd7 {[%clk 0:02:36]} 14. h4 {[%clk 0:02:34]}  Bb7 {[%clk 0:02:34]} 15. h5 {[%clk 0:02:32]}  Nc5 {[%clk 0:02:20]} 16. g6 {[%clk 0:02:00]}  Nxe4 {[%clk 0:02:04]} 17. h6 {[%clk 0:01:33]}  fxg6 {[%clk 0:01:11]} 18. hxg7 {[%clk 0:01:33]}  Rf5 {[%clk 0:00:46]} 19. Bg2 {[%clk 0:00:48]}  d5 {[%clk 0:00:46]} 20. Nxe4 {[%clk 0:00:39]}  dxe4 {[%clk 0:00:47]} 21. Qh3 {[%clk 0:00:39]}  Rh5 {[%clk 0:00:32]} 22. Qg4 {[%clk 0:00:38]}  Rc8 {[%clk 0:00:29]} 23. Rd2 {[%clk 0:00:20]}  Rxh1+ {[%clk 0:00:29]} 24. Bxh1 {[%clk 0:00:20]}  Bf6 {[%clk 0:00:27]} 25. Rh2 {[%clk 0:00:14]}  Bxg7 {[%clk 0:00:25]} 26. Qh4 {[%clk 0:00:11]}  h5 {[%clk 0:00:22]} 27. Qg5 {[%clk 0:00:11]}  Qe8 {[%clk 0:00:19]} 28. Rg2 {[%clk 0:00:06]}  Kh7 {[%clk 0:00:17]} 29. Rh2 {[%clk 0:00:05]}  Bd5 {[%clk 0:00:13]} 30. Bg2 {[%clk 0:00:05]}  Qf7 {[%clk 0:00:13]} 31. Bh3 {[%clk 0:00:05]}  a5 {[%clk 0:00:11]} 32. Bg4 {[%clk 0:00:04]}  b4 {[%clk 0:00:10]} 33. f5 {[%clk 0:00:04]}  exf5 {[%clk 0:00:10]} 34. Bxf5 {[%clk 0:00:04]}  Qxf5 {[%clk 0:00:04]} 35. Rxh5+ {[%clk 0:00:05]}  Kg8 {[%clk 0:00:05]} 36. Qxf5 {[%clk 0:00:05]}  gxf5 {[%clk 0:00:05]} 37. Rxf5 {[%clk 0:00:06]}  Be6 {[%clk 0:00:06]} 38. Rxa5 {[%clk 0:00:05]}  bxa3 {[%clk 0:00:06]} 39. bxa3 {[%clk 0:00:06]}  Rb8 {[%clk 0:00:07]} 40. Ra7 {[%clk 0:00:05]}  Bf7 {[%clk 0:00:07]} 41. a4 {[%clk 0:00:05]}  Bb2+ {[%clk 0:00:07]} 42. Kd2 {[%clk 0:00:05]}  Be5 {[%clk 0:00:06]} 43. a5 {[%clk 0:00:05]}  Bd6 {[%clk 0:00:05]} 44. a6 {[%clk 0:00:04]}  Bc4 {[%clk 0:00:05]} 45. Rd7 {[%clk 0:00:02]}  Bb4+ {[%clk 0:00:06]} 46. c3 {[%clk 0:00:02]}  Bf8 {[%clk 0:00:04]} 47. a7 {[%clk 0:00:02]}  Ra8 {[%clk 0:00:05]} 48. Rb7 {[%clk 0:00:02]}  Bd5 {[%clk 0:00:04]} 49. Rb8 {[%clk 0:00:02]}  Kf7 {[%clk 0:00:04]} 50. Bb6 {[%clk 0:00:00]}  Bd6 {[%clk 0:00:04]} 0-1


[Site "https://www.chess.com"]

[Event "Titled Tuesday Blitz May 16 Early 2023"]
[White "Gurevich, Dmitry"]
[Black "SashaKuzhilniy"]
[WhiteFideId "2000407"]
[WhiteElo "2506"]
[BlackElo "2599"]
[Result "1/2-1/2"]
[Round "11"]
[TimeControl "180+2"]
[Date "2023.05.16"]
[WhiteClock "0:00:15"]
[BlackClock "0:00:39"]

1. d4 {[%clk 0:03:00]}  Nf6 {[%clk 0:02:59]} 2. c4 {[%clk 0:02:59]}  e5 {[%clk 0:02:59]} 3. dxe5 {[%clk 0:02:58]}  Ng4 {[%clk 0:03:00]} 4. Bf4 {[%clk 0:02:58]}  Nc6 {[%clk 0:02:59]} 5. Nf3 {[%clk 0:02:57]}  Bb4+ {[%clk 0:02:58]} 6. Nc3 {[%clk 0:02:56]}  Bxc3+ {[%clk 0:02:58]} 7. bxc3 {[%clk 0:02:56]}  Qe7 {[%clk 0:02:59]} 8. Qd5 {[%clk 0:02:55]}  f6 {[%clk 0:02:59]} 9. exf6 {[%clk 0:02:55]}  Nxf6 {[%clk 0:03:00]} 10. Qd3 {[%clk 0:02:55]}  O-O {[%clk 0:02:59]} 11. g3 {[%clk 0:02:53]}  d6 {[%clk 0:02:58]} 12. Bg2 {[%clk 0:02:53]}  Re8 {[%clk 0:02:57]} 13. O-O {[%clk 0:02:49]}  Qxe2 {[%clk 0:02:57]} 14. Qxe2 {[%clk 0:02:49]}  Rxe2 {[%clk 0:02:58]} 15. Nd4 {[%clk 0:02:49]}  Nxd4 {[%clk 0:02:58]} 16. cxd4 {[%clk 0:02:48]}  Be6 {[%clk 0:02:59]} 17. Bxb7 {[%clk 0:02:30]}  Rb8 {[%clk 0:02:58]} 18. Bf3 {[%clk 0:02:23]}  Rc2 {[%clk 0:02:57]} 19. c5 {[%clk 0:02:17]}  Nd5 {[%clk 0:02:33]} 20. Bxd5 {[%clk 0:01:45]}  Bxd5 {[%clk 0:02:34]} 21. cxd6 {[%clk 0:01:45]}  cxd6 {[%clk 0:02:33]} 22. Bxd6 {[%clk 0:01:42]}  Rbb2 {[%clk 0:02:33]} 23. Ba3 {[%clk 0:01:40]}  Rxa2 {[%clk 0:02:30]} 24. Rxa2 {[%clk 0:01:38]}  Rxa2 {[%clk 0:02:31]} 25. Bc5 {[%clk 0:01:38]}  a5 {[%clk 0:02:28]} 26. h4 {[%clk 0:01:27]}  Bf3 {[%clk 0:02:23]} 27. Kh2 {[%clk 0:01:24]}  h5 {[%clk 0:02:20]} 28. g4 {[%clk 0:01:24]}  Bxg4 {[%clk 0:02:15]} 29. Kg3 {[%clk 0:01:23]}  a4 {[%clk 0:02:04]} 30. f3 {[%clk 0:01:23]}  Be6 {[%clk 0:02:00]} 31. Re1 {[%clk 0:01:22]}  Kf7 {[%clk 0:02:00]} 32. Rb1 {[%clk 0:01:16]}  Bd5 {[%clk 0:01:57]} 33. Kf4 {[%clk 0:01:12]}  Rf2 {[%clk 0:01:53]} 34. Ke5 {[%clk 0:01:12]}  Bxf3 {[%clk 0:01:53]} 35. d5 {[%clk 0:01:09]}  Re2+ {[%clk 0:01:52]} 36. Kd6 {[%clk 0:01:03]}  Rd2 {[%clk 0:01:51]} 37. Rb7+ {[%clk 0:00:41]}  Kg6 {[%clk 0:01:35]} 38. Rb6 {[%clk 0:00:40]}  Rxd5+ {[%clk 0:01:25]} 39. Ke7+ {[%clk 0:00:40]}  Kf5 {[%clk 0:01:23]} 40. Ba3 {[%clk 0:00:32]}  Rd3 {[%clk 0:01:19]} 41. Bb2 {[%clk 0:00:29]}  Kg4 {[%clk 0:01:08]} 42. Rb4+ {[%clk 0:00:27]}  Kg3 {[%clk 0:01:04]} 43. Rxa4 {[%clk 0:00:27]}  g6 {[%clk 0:01:03]} 44. Kf6 {[%clk 0:00:25]}  Rd6+ {[%clk 0:01:01]} 45. Kg5 {[%clk 0:00:25]}  Rc6 {[%clk 0:00:57]} 46. Be5+ {[%clk 0:00:24]}  Kg2 {[%clk 0:00:55]} 47. Ra2+ {[%clk 0:00:23]}  Kf1 {[%clk 0:00:56]} 48. Ra1+ {[%clk 0:00:23]}  Ke2 {[%clk 0:00:56]} 49. Ra2+ {[%clk 0:00:23]}  Kd1 {[%clk 0:00:56]} 50. Bf6 {[%clk 0:00:21]}  Be4 {[%clk 0:00:55]} 51. Ra4 {[%clk 0:00:19]}  Bf5 {[%clk 0:00:54]} 52. Rf4 {[%clk 0:00:17]}  Bd3 {[%clk 0:00:49]} 53. Rd4 {[%clk 0:00:16]}  Ke2 {[%clk 0:00:49]} 54. Rd5 {[%clk 0:00:16]}  Be4 {[%clk 0:00:47]} 55. Ra5 {[%clk 0:00:16]}  Kd3 {[%clk 0:00:45]} 56. Ra3+ {[%clk 0:00:15]}  Kc4 {[%clk 0:00:45]} 57. Ra4+ {[%clk 0:00:15]}  Kd3 {[%clk 0:00:44]} 58. Ra3+ {[%clk 0:00:15]}  Ke2 {[%clk 0:00:44]} 59. Ra2+ {[%clk 0:00:15]}  Kd3 {[%clk 0:00:39]} 60. Ra3+ {[%clk 0:00:15]} 1/2-1/2


[Site "https://www.chess.com"]